bitfinex/quotes_ETHUSD_20230701
["timestamp","ask_amount","ask_price","bid_price","bid_amount"]
[1688176451401,0.57109551,1931.8,1931.4,7.56512]
[1688176451906,5.74770551,1931.8,1931.4,7.56512]
[1688176452083,5.76413421,1931.8,1931.4,2.3877]
[1688176452271,5.76413421,1931.8,1931.4,7.56525]
[1688176452469,7.10713421,1931.8,1931.3,6.8732]
[1688176452709,0.71071342,1931.7,1931.3,10.35544]
[1688176453918,0.00314678,1931.6,1931.3,5.1777]
[1688176454382,0.00314678,1931.6,1931.3,5.60275502]
[1688176454782,1.21071342,1931.7,1931.3,10.78060502]
[1688176454983,1.21071342,1931.7,1931.3,5.60275502]
[1688176455194,6.38752342,1931.7,1931.3,5.60275502]
[1688176455387,0.63875234,1931.6,1931.3,5.60275502]
[1688176455780,0.00313878,1931.5,1931.3,5.60275502]
[1688176456516,5.18046878,1931.5,1931.1,5.17831]
[1688176456705,0.5,1931.4,1931.1,5.17839]
[1688176457017,1.34213878,1931.5,1931.1,10.35678]
[1688176457188,0.5,1931.4,1931.1,5.17839]
[1688176457903,0.00313292,1931.3,1931.1,10.77568599]
[1688176458690,0.00313292,1931.3,1931.1,5.59729599]
[1688176458919,0.5,1931.4,1931.1,5.59729599]
[1688176459117,1.201635,1931.4,1931.1,0.41890599]
[1688176459316,0.5,1931.4,1931.1,5.59729599]
[1688176459478,0.5,1931.4,1931.1,5.17839]
[1688176459816,0.00313292,1931.3,1931.0,12.73228]
[1688176460018,0.00313292,1931.3,1931.0,7.55378]
[1688176461021,0.5,1931.4,1931.0,7.55378]
[1688176461222,1.20327587,1931.4,1931.0,7.55378]
[1688176461923,0.00313137,1931.3,1931.0,7.55378]
[1688176462623,0.00313137,1931.3,1930.9,5.17877]
[1688176462834,1.20327587,1931.4,1931.0,10.76240874]
[1688176463048,1.20327587,1931.4,1931.0,10.35727]
[1688176463490,1.20327587,1931.4,1931.0,12.9466]
[1688176463690,0.00312982,1931.3,1931.0,14.28280227]
[1688176464723,0.5,1931.4,1931.0,14.28280227]
[1688176465823,0.00313292,1931.3,1931.0,14.28280227]
[1688176465987,0.00313292,1931.3,1931.0,16.06510227]
[1688176466829,0.5,1931.4,1931.0,16.06510227]
[1688176467831,0.00313292,1931.3,1931.0,16.06510227]
[1688176469009,0.5,1931.4,1931.0,16.06510227]
[1688176469793,0.00313292,1931.3,1931.0,16.06510227]
[1688176470488,0.00313292,1931.3,1931.1,5.62603207]
[1688176470691,0.00313292,1931.3,1931.2,15.53436]
[1688176470990,0.5,1931.8,1931.2,17.35936]
[1688176471946,0.00315479,1931.7,1931.2,17.35936]
[1688176475140,3.0,1931.4,1931.2,17.35936]
[1688176475352,3.0,1931.4,1931.2,17.99713347]
[1688176475499,3.0,1931.4,1931.2,19.34013347]
[1688176475852,0.00312277,1931.3,1931.2,19.34013347]
[1688176476747,3.0,1931.4,1931.2,19.34013347]
[1688176477843,0.00311769,1931.3,1931.2,19.34013347]
[1688176478853,3.0,1931.4,1931.2,19.34013347]
[1688176479145,3.0,1931.4,1931.3,1.33620227]
[1688176479348,3.0,1931.4,1931.3,14.28082227]
[1688176480046,3.0031257,1931.4,1931.3,14.28082227]
[1688176481454,3.0031257,1931.4,1931.3,12.94462]
[1688176487541,3.0031257,1931.4,1931.3,10.3557]
[1688176487884,3.0031257,1931.4,1931.3,5.17785]
[1688176489675,3.0031257,1931.4,1931.3,10.3557]
[1688176491687,3.0031257,1931.4,1931.3,12.94462]
[1688176491979,3.0031257,1931.4,1931.3,14.497985]
[1688176493580,3.0031257,1931.4,1931.3,12.94462]
[1688176502241,3.0031257,1931.4,1931.1,0.41687233]
[1688176502446,0.5,1931.2,1930.8,7.43593]
[1688176502614,0.5,1931.2,1930.8,5.17903]
[1688176502814,0.00313721,1931.1,1930.7,5.17929]
[1688176503013,0.00313721,1931.1,1930.7,5.17941]
[1688176503346,5.18153721,1931.1,1930.7,5.17941]
[1688176503545,0.51815372,1931.0,1930.6,7.84514327]
[1688176503693,5.69681372,1931.0,1930.6,2.66561327]
[1688176503896,0.5,1930.9,1930.6,0.40871327]
[1688176504095,0.5,1930.9,1930.4,1.89431208]
[1688176504333,5.17933,1930.8,1930.4,2.79449632]
[1688176504645,5.17933,1930.8,1930.5,0.90018424]
[1688176504792,6.265169,1930.8,1930.4,0.54410799]
[1688176504998,6.265169,1930.8,1930.4,0.90018922]
[1688176505438,11.444499,1930.8,1930.4,6.08043922]
[1688176505621,6.265169,1930.8,1930.5,0.90018922]
[1688176505945,11.444369,1930.8,1930.5,0.90018922]
[1688176506113,1.1444369,1930.7,1930.5,6.08008922]
[1688176506308,6.265039,1930.8,1930.5,10.3599]
[1688176507040,6.265039,1930.8,1930.4,2.9997694]
[1688176507041,0.0030673,1930.7,1930.4,10.7699794]
[1688176507806,0.0030673,1930.7,1930.4,5.5897694]
[1688176508438,5.1825473,1930.7,1930.4,5.5897694]
[1688176509967,10.3620273,1930.7,1930.4,0.4096394]
[1688176510143,0.51825473,1930.6,1930.4,0.4096394]
[1688176510453,5.69809473,1930.6,1930.3,7.60595384]
[1688176510658,5.69809473,1930.6,1930.3,13.19793044]
[1688176510857,0.00305945,1930.5,1930.3,13.19793044]
[1688176511359,0.00305945,1930.5,1930.3,8.01740044]
[1688176512058,5.69809473,1930.6,1930.3,8.01740044]
[1688176512823,0.00306453,1930.5,1930.3,8.01740044]
[1688176513768,0.00306453,1930.5,1930.3,13.19794044]
[1688176514849,0.00306453,1930.5,1930.3,15.78821044]
[1688176515048,0.00306453,1930.5,1930.3,20.09552632]
[1688176515931,5.67896,1930.9,1930.3,20.09552632]
[1688176516171,5.67896,1930.9,1930.3,20.27603228]
[1688176516736,0.00308856,1930.8,1930.3,20.27603228]
[1688176526603,0.00308856,1930.8,1930.3,20.14820844]
[1688176527505,0.00308856,1930.8,1930.5,14.29287]
[1688176527679,0.00308856,1930.8,1930.7,12.94865]
[1688176528007,0.5,1931.1,1930.7,14.602975]
[1688176528206,1.0,1931.1,1930.7,12.94865]
[1688176529005,0.0030878,1931.0,1930.7,12.94865]
[1688176529513,0.0030878,1931.0,1930.7,15.63617184]
[1688176529873,0.5,1931.2,1930.7,15.63617184]
[1688176530076,1.0,1931.2,1930.7,15.63617184]
[1688176530295,1.0,1931.2,1930.7,17.99938902]
[1688176530917,0.00308368,1931.1,1930.8,4.01952184]
[1688176531068,0.00308368,1931.1,1930.9,14.29017]
[1688176531260,0.00308368,1931.1,1930.9,19.29279184]
[1688176531972,0.0164287,1931.3,1930.9,19.29279184]
[1688176532297,0.0164287,1931.3,1930.9,20.62069502]
[1688176532897,0.00398363,1931.2,1930.9,12.67284]
[1688176533203,0.00398363,1931.2,1930.9,5.17887]
[1688176533413,0.00398363,1931.2,1930.8,10.00569]
[1688176533708,5.18214363,1931.2,1930.9,5.17891]
[1688176533905,0.00398363,1931.2,1930.8,7.49409]
[1688176534113,0.52381286,1931.2,1930.9,5.17884]
[1688176534405,5.70193286,1931.2,1930.8,7.49412]
[1688176534576,5.70193286,1931.2,1930.8,5.17902]
[1688176535199,6.20193286,1931.2,1930.8,5.17902]
[1688176535373,11.38005286,1931.2,1930.7,12.75126]
[1688176535574,6.20193286,1931.2,1930.7,15.43878184]
[1688176535772,11.38005286,1931.2,1930.7,15.43878184]
[1688176535968,6.20193286,1931.2,1930.7,17.71434302]
[1688176536564,6.20193286,1931.2,1930.7,18.13225564]
[1688176537366,11.38005286,1931.2,1930.7,12.95290564]
[1688176538196,6.20193286,1931.2,1930.7,12.95290564]
[1688176539303,6.20193286,1931.2,1930.7,10.67734446]
[1688176539989,6.20193286,1931.2,1930.7,7.98982262]
[1688176540183,11.38005286,1931.2,1930.7,7.98982262]
[1688176540400,13.96911286,1931.2,1930.7,12.75137]
[1688176540707,13.96911286,1931.2,1930.7,7.57191]
[1688176540910,1.39691129,1931.1,1930.7,7.57191]
[1688176541194,6.57550129,1931.1,1930.7,7.57191]
[1688176541667,11.75409129,1931.1,1930.7,7.57191]
[1688176541995,0.00397626,1931.0,1930.7,12.75137]
[1688176542199,0.00397626,1931.0,1930.7,15.3411]
[1688176545826,11.37636923,1931.2,1930.7,15.3411]
[1688176546030,1.01982923,1931.2,1930.7,18.02862184]
[1688176546328,0.5,1931.2,1930.7,18.02862184]
[1688176546532,0.5,1931.2,1930.7,19.71982184]
[1688176546835,0.00397413,1931.1,1930.7,19.71982184]
[1688176547741,0.00397413,1931.1,1930.7,15.3411]
[1688176547902,5.18238413,1931.1,1930.7,12.75137]
[1688176548098,0.51823841,1931.0,1930.7,12.75137]
[1688176548322,0.00397413,1931.1,1930.7,12.75137]
[1688176548522,0.00397413,1931.1,1930.7,15.3411]
[1688176548914,0.00397413,1931.1,1930.7,19.35962184]
[1688176549637,0.00397413,1931.1,1930.8,0.90007756]
[1688176549928,0.00397413,1931.1,1930.9,12.94732]
[1688176555612,0.00397413,1931.1,1930.9,14.424112]
[1688176555829,3.207276,1931.4,1930.9,17.11163384]
[1688176556941,0.00398435,1931.3,1930.9,17.11163384]
[1688176557850,3.2237047,1931.4,1930.9,17.11163384]
[1688176558149,16.1677147,1931.4,1930.9,10.35786]
[1688176558769,0.00398435,1931.3,1930.9,10.35786]
[1688176559081,5.18202435,1931.3,1930.9,10.35786]
[1688176560255,5.18202435,1931.3,1930.9,12.94732]
[1688176560495,6.95382726,1931.3,1930.9,12.94732]
[1688176560899,0.5,1931.1,1930.7,9.45903799]
[1688176561058,0.5,1931.1,1930.7,7.57191]
[1688176561258,0.5,1931.1,1930.7,7.57204]
[1688176561459,1.202119,1931.1,1930.7,7.57204]
[1688176561766,0.00396046,1931.0,1930.7,7.57204]
[1688176562356,0.00396046,1931.0,1930.7,12.7515]
[1688176563802,8.07944,1931.2,1930.7,12.7515]
[1688176564214,0.5,1931.1,1930.7,12.7515]
[1688176564369,1.357944,1931.1,1930.7,12.7515]
[1688176564568,1.357944,1931.1,1930.7,7.57204]
[1688176564772,1.357944,1931.1,1930.7,10.3589]
[1688176564773,0.00396046,1931.0,1930.7,10.3589]
[1688176568218,5.18264046,1931.0,1930.6,9.65172617]
[1688176568576,0.5,1930.9,1930.6,2.79160617]
[1688176568775,1.59010891,1930.9,1930.6,7.97132617]
[1688176569225,1.59010891,1930.9,1930.6,2.79160617]
[1688176569389,1.59010891,1930.9,1930.6,0.41820617]
[1688176569588,7.01690686,1930.9,1930.4,7.07439402]
[1688176569824,7.01690686,1930.9,1930.4,1.35020603]
[1688176569997,7.01690686,1930.9,1930.4,7.43067904]
[1688176570194,7.01690686,1930.9,1930.4,6.53040603]
[1688176570598,12.19583686,1930.9,1930.4,1.35020603]
[1688176570812,1.21958369,1930.8,1930.4,2.25045084]
[1688176571120,6.39893369,1930.8,1930.4,2.25045084]
[1688176571283,11.57828369,1930.8,1930.4,2.25045084]
[1688176571484,11.57828369,1930.8,1930.3,2.93300799]
[1688176571718,6.39893369,1930.8,1930.4,0.90025187]
[1688176571923,0.6438543,1930.7,1930.4,0.90025187]
[1688176574902,0.6438543,1930.7,1930.4,6.08049187]
[1688176575104,5.8233143,1930.7,1930.3,7.97683767]
[1688176575322,5.8233143,1930.7,1930.3,2.79648767]
[1688176575693,5.8233143,1930.7,1930.3,7.97699767]
[1688176576087,5.8233143,1930.7,1930.3,13.15753767]
[1688176576288,0.6438543,1930.7,1930.3,13.15753767]
[1688176576488,0.00396093,1930.7,1930.3,13.15753767]
[1688176586276,5.18344093,1930.7,1930.3,7.97699767]
[1688176586978,5.18344093,1930.7,1930.3,13.15753767]
[1688176588557,0.00396093,1930.7,1930.3,7.97699767]
[1688176588768,5.18344093,1930.7,1930.3,7.97699767]
[1688176589081,6.50673002,1930.7,1930.3,7.97699767]
[1688176590151,5.18344093,1930.7,1930.3,13.15753767]
[1688176591996,0.00396093,1930.7,1930.3,13.15753767]
[1688176593084,0.00396093,1930.7,1930.3,13.02832367]
[1688176600722,0.00396093,1930.7,1930.3,7.84778367]
[1688176601209,0.00396093,1930.7,1930.3,13.02832367]
[1688176601381,1.19324202,1930.7,1930.3,13.02832367]
[1688176603286,1.19324202,1930.7,1930.3,7.84778367]
[1688176604081,1.19324202,1930.7,1930.3,15.61859367]
[1688176604318,0.00396093,1930.7,1930.3,15.61859367]
[1688176604620,0.00396093,1930.7,1930.4,12.05705]
[1688176605432,5.18343093,1930.7,1930.4,6.87681]
[1688176605719,0.00396093,1930.7,1930.4,6.87681]
[1688176606710,0.00396093,1930.7,1930.4,12.05708]
[1688176606909,5.67908,1930.9,1930.4,13.52951537]
[1688176607207,5.67908,1930.9,1930.4,12.05708]
[1688176607888,0.00395879,1930.8,1930.4,12.05708]
[1688176608920,10.85823,1930.9,1930.4,12.05708]
[1688176610010,0.00395879,1930.8,1930.4,12.05708]
[1688176610524,5.18319879,1930.8,1930.4,12.05708]
[1688176610833,0.51831988,1930.7,1930.4,6.87681]
[1688176611833,0.00394286,1930.6,1930.4,6.87681]
[1688176612886,5.17924,1930.8,1930.4,6.87681]
[1688176613840,0.00395083,1930.7,1930.4,6.87681]
[1688176614146,0.00395083,1930.7,1930.6,1.332]
[1688176614347,0.00395083,1930.7,1930.6,2.23223792]
[1688176614638,0.00395083,1930.7,1930.6,16.57205269]
[1688176614835,0.5,1931.1,1930.6,16.57205269]
[1688176615057,0.5,1931.1,1930.7,2.23823792]
[1688176615358,0.5,1931.3,1930.8,14.28688]
[1688176615646,0.5,1931.3,1931.0,10.35722]
[1688176615852,0.00399294,1931.2,1931.0,10.35722]
[1688176620347,0.00399294,1931.2,1931.0,5.17861]
[1688176625529,0.50399294,1931.2,1931.0,5.17861]
[1688176629531,0.00399294,1931.2,1931.0,5.17861]
[1688176629737,0.50399294,1931.2,1931.0,5.17861]
[1688176630236,1.07218823,1931.2,1931.0,5.17861]
[1688176630463,1.07218823,1931.2,1930.9,6.85416]
[1688176630678,1.07218823,1931.2,1931.0,5.17862]
[1688176630831,0.50399294,1931.2,1931.0,5.17862]
[1688176631936,0.50399294,1931.2,1930.9,2.3224]
[1688176632570,5.68213294,1931.2,1930.9,2.3224]
[1688176634077,5.18213294,1931.2,1930.9,2.3224]
[1688176634478,5.68213294,1931.2,1930.9,2.3224]
[1688176634776,0.56821329,1931.1,1930.9,2.3224]
[1688176635970,0.00396046,1931.0,1930.9,2.3224]
[1688176640961,5.67814,1931.2,1930.9,7.50133]
[1688176641898,0.00396842,1931.1,1930.9,7.50133]
[1688176642603,0.00396842,1931.1,1930.9,12.68026]
[1688176642910,10.35603,1931.3,1930.9,12.68026]
[1688176643060,1.035603,1931.2,1930.9,12.68026]
[1688176643508,1.535603,1931.2,1930.9,12.68026]
[1688176643859,0.00396842,1931.1,1930.9,7.50133]
[1688176645265,0.00396842,1931.1,1930.9,2.3224]
[1688176646706,0.00396842,1931.1,1930.7,2.22384194]
[1688176646707,6.52241842,1931.1,1930.7,2.22384194]
[1688176646999,6.37201556,1931.1,1930.7,2.22384194]
[1688176647197,1.19356556,1931.1,1930.7,12.58273194]
[1688176649867,6.37197556,1931.1,1930.7,12.58273194]
[1688176651813,6.37197556,1931.1,1930.7,7.40327194]
[1688176654626,0.63719756,1931.0,1930.7,5.59757194]
[1688176654827,5.81999861,1931.0,1930.6,12.53139]
[1688176655029,5.81999861,1931.0,1930.6,14.33029]
[1688176655194,5.81999861,1931.0,1930.7,5.17945]
[1688176655730,0.64116861,1931.0,1930.7,5.17945]
[1688176662041,0.00397105,1931.0,1930.7,5.17945]
[1688176662247,0.00397105,1931.0,1930.7,10.35891]
[1688176663215,0.00397105,1931.0,1930.7,5.17945]
[1688176663412,0.50397105,1931.0,1930.7,5.17945]
[1688176663655,5.68267105,1931.0,1930.6,9.15071]
[1688176663817,0.56826711,1930.9,1930.6,9.15071]
[1688176664952,0.00395666,1930.8,1930.6,9.15071]
[1688176666061,5.6787,1931.0,1930.6,9.15071]
[1688176666271,5.6787,1931.0,1930.6,14.33044]
[1688176667058,0.00396463,1930.9,1930.6,14.33044]
[1688176672456,0.57223209,1930.9,1930.6,14.33044]
[1688176674860,0.57223209,1930.9,1930.6,9.15071]
[1688176676256,0.00396463,1930.9,1930.6,9.15071]
[1688176683977,0.00396463,1930.9,1930.6,14.33044]
[1688176684811,0.00396463,1930.9,1930.6,9.15071]
[1688176685254,5.18291463,1930.9,1930.6,9.15071]
[1688176685746,0.00396463,1930.9,1930.6,9.15071]
[1688176685953,1.25131409,1930.9,1930.6,9.15071]
[1688176687450,0.00396463,1930.9,1930.6,9.15071]
[1688176688350,0.00396463,1930.9,1930.6,14.33044]
[1688176689144,0.00396463,1930.9,1930.6,19.60782184]
[1688176689322,0.00396463,1930.9,1930.7,2.68752184]
[1688176689646,0.00396463,1930.9,1930.8,10.3584]
[1688176689856,0.00396463,1930.9,1930.8,11.92195718]
[1688176690038,0.5,1931.2,1930.8,15.92525718]
[1688176690266,0.5,1931.2,1930.8,14.3617]
[1688176690951,0.00398056,1931.1,1930.8,14.3617]
[1688176705948,0.00398056,1931.1,1930.9,2.68752184]
[1688176706085,0.00398056,1931.1,1931.0,12.94665]
[1688176706817,14.062826,1931.4,1931.0,14.34962]
[1688176707048,15.6263286,1931.4,1931.0,2.218]
[1688176707211,16.9827573,1931.4,1931.0,2.218]
[1688176708022,0.00398423,1931.3,1931.0,2.218]
[1688176708229,5.18191423,1931.3,1931.0,2.218]
[1688176709148,0.00398423,1931.3,1931.0,2.218]
[1688176709451,0.5164287,1931.2,1930.7,9.94325513]
[1688176709649,0.5164287,1931.2,1930.8,5.17894]
[1688176709827,5.6945987,1931.2,1930.8,5.17894]
[1688176710132,0.00397138,1931.1,1930.8,5.17894]
[1688176711910,0.00397138,1931.1,1930.7,0.41358774]
[1688176711911,0.5,1931.0,1930.7,0.41358774]
[1688176712111,6.89814814,1931.0,1930.6,5.17962]
[1688176712393,1.71939814,1931.0,1930.7,10.35891]
[1688176713025,0.00395699,1930.9,1930.7,10.35891]
[1688176713339,0.00395699,1930.9,1930.7,12.94864]
[1688176714238,0.00395699,1930.9,1930.6,5.17957]
[1688176714443,0.00395699,1930.9,1930.6,10.35918]
[1688176716213,0.57222969,1930.9,1930.6,10.35918]
[1688176716420,5.75115969,1930.9,1930.6,5.17957]
[1688176717600,0.5,1930.7,1930.3,0.54410799]
[1688176717838,0.5,1930.7,1930.3,3.16158115]
[1688176718005,5.67951,1930.7,1930.4,0.90027316]
[1688176718337,0.567951,1930.6,1930.3,6.89769]
[1688176718700,0.567951,1930.6,1930.3,7.30642095]
[1688176719803,0.567951,1930.6,1930.3,12.48696095]
[1688176721551,2.0777,1930.7,1930.3,12.48696095]
[1688176721837,0.00394026,1930.5,1930.3,12.48696095]
[1688176722645,0.00394026,1930.5,1930.3,15.07723095]
[1688176722919,12.43679,1930.7,1930.3,15.07723095]
[1688176723121,1.243679,1930.6,1930.3,15.07723095]
[1688176723936,0.00393522,1930.5,1930.3,12.48696095]
[1688176730953,5.17979,1930.6,1930.3,12.48696095]
[1688176732071,0.00392598,1930.5,1930.3,12.48696095]
[1688176732866,7.2572,1930.7,1930.3,12.48696095]
[1688176733075,5.90552,1930.6,1930.3,12.48696095]
[1688176733372,5.1798,1930.6,1930.3,12.48696095]
[1688176734069,0.0039306,1930.5,1930.3,7.30642095]
[1688176735964,0.0039306,1930.5,1930.3,12.48696095]
[1688176736139,0.0039306,1930.5,1930.3,7.30642095]
[1688176736736,0.0039306,1930.5,1930.3,12.48696095]
[1688176736935,0.0039306,1930.5,1930.3,14.22361316]
[1688176737156,0.0039306,1930.5,1930.3,19.501405]
[1688176738041,0.5,1930.7,1930.3,19.501405]
[1688176738934,3.1973,1931.1,1930.3,19.501405]
[1688176738935,0.00393352,1930.6,1930.5,14.293]
[1688176739276,0.00393352,1930.6,1930.5,16.98052184]
[1688176739441,0.00393352,1930.6,1930.5,19.23758102]
[1688176739771,0.00393352,1930.6,1930.5,23.28248102]
[1688176739975,0.5,1931.1,1930.5,23.28248102]
[1688176740151,0.5,1931.1,1930.6,1.343]
[1688176740352,0.5,1931.1,1930.7,10.35866]
[1688176740555,0.5,1931.1,1930.7,12.08316]
[1688176740766,0.5,1931.1,1930.7,13.49493458]
[1688176741083,0.00381032,1931.0,1930.7,13.49493458]
[1688176742856,0.00381032,1931.0,1930.7,16.18245642]
[1688176743059,0.00381032,1931.0,1930.7,20.11518642]
[1688176743451,0.00381032,1931.0,1930.8,2.68752184]
[1688176743788,0.00381032,1931.0,1930.9,10.62661218]
[1688176743955,0.5,1931.3,1930.9,10.62661218]
[1688176744282,0.5,1931.3,1930.9,12.17426]
[1688176744991,0.00383421,1931.2,1930.9,12.17426]
[1688176752087,0.00383421,1931.2,1931.0,5.32270127]
[1688176759159,0.00283414,1931.2,1931.0,5.32270127]
[1688176759706,0.00283414,1931.2,1931.0,10.50136127]
[1688176760433,1.08870455,1931.2,1931.0,10.50136127]
[1688176761032,1.08587041,1931.2,1931.0,10.50136127]
[1688176767175,1.08587041,1931.2,1931.0,0.14416127]
[1688176767344,12.77615041,1931.2,1931.0,0.14416127]
[1688176767734,12.77615041,1931.2,1930.8,2.3199]
[1688176767968,6.45604504,1931.1,1930.8,2.3199]
[1688176768771,1.27761504,1931.1,1930.8,2.3199]
[1688176774781,7.59800041,1931.2,1930.8,7.49901]
[1688176774981,7.59800041,1931.2,1930.8,15.26781]
[1688176774982,1.08587041,1931.2,1930.8,15.26781]
[1688176775278,12.4584287,1931.3,1930.8,15.26781]
[1688176775481,12.4584287,1931.3,1930.8,17.01461]
[1688176777858,12.4584287,1931.3,1930.8,14.42501]
[1688176778370,12.4584287,1931.3,1930.8,9.24581]
[1688176779155,6.42399287,1931.2,1930.8,9.24581]
[1688176783653,11.60214287,1931.2,1930.8,4.0667]
[1688176784487,11.60214287,1931.2,1930.8,2.3199]
[1688176785666,11.60214287,1931.2,1930.8,7.49903]
[1688176787393,11.60214287,1931.2,1930.8,2.3199]
[1688176787555,1.16021429,1931.1,1930.8,2.3199]
[1688176787755,6.33865429,1931.1,1930.8,7.49908]
[1688176787973,1.16021429,1931.1,1930.8,7.49908]
[1688176789181,6.33861429,1931.1,1930.8,7.49908]
[1688176789690,1.16021429,1931.1,1930.8,7.49908]
[1688176789872,6.42399287,1931.2,1930.8,12.67828]
[1688176790899,11.60222287,1931.2,1930.8,12.67828]
[1688176791262,11.60222287,1931.2,1930.8,7.49908]
[1688176791465,11.60222287,1931.2,1930.8,2.3199]
[1688176791664,11.60222287,1931.2,1930.7,10.54222799]
[1688176791873,6.33879229,1931.1,1930.8,0.90013185]
[1688176792511,15.94955229,1931.1,1930.6,0.54410799]
[1688176792804,0.5,1930.9,1930.6,0.90018758]
[1688176793015,0.5,1930.9,1930.6,6.07989758]
[1688176793305,11.943955,1930.9,1930.5,4.545486]
[1688176793605,1.585755,1930.9,1930.5,14.905356]
[1688176794409,6.764725,1930.9,1930.5,14.905356]
[1688176795299,11.943695,1930.9,1930.5,14.905356]
[1688176796070,11.943695,1930.9,1930.5,9.725356]
[1688176799317,11.943695,1930.9,1930.5,4.1218]
[1688176799497,1.1943695,1930.8,1930.5,4.1218]
[1688176799698,5.17924,1930.8,1930.5,4.1218]
[1688176800692,8.278025,1930.9,1930.5,9.30176]
[1688176800980,5.17921,1930.8,1930.5,4.1218]
[1688176801376,0.5,1930.7,1930.4,0.41400926]
[1688176801601,5.67966,1930.7,1930.4,2.08030926]
[1688176801780,5.67966,1930.7,1930.4,1.6663]
[1688176801992,5.67966,1930.7,1930.4,6.84655]
[1688176802316,0.5,1930.7,1930.4,6.84655]
[1688176802513,5.6795,1930.7,1930.4,1.6663]
[1688176802885,0.5,1930.7,1930.4,6.84655]
[1688176805411,0.5,1930.7,1930.3,7.93575231]
[1688176805412,12.01660165,1930.7,1930.3,2.75542231]
[1688176805613,14.62276035,1930.7,1930.3,0.40992231]
[1688176805853,14.62276035,1930.7,1930.2,5.31056111]
[1688176805854,0.5,1930.5,1930.2,5.31056111]
[1688176806142,10.8603,1930.5,1930.2,5.31056111]
[1688176806446,10.8603,1930.5,1930.2,0.12989111]
[1688176806606,1.08603,1930.4,1930.2,0.12989111]
[1688176806803,6.26643,1930.4,1930.2,0.12989111]
[1688176807950,1.08603,1930.4,1930.2,10.49147111]
[1688176808110,5.68015,1930.5,1930.2,10.49147111]
[1688176808706,5.68015,1930.5,1930.2,5.31066111]
[1688176810147,1.536939,1930.5,1930.2,10.49147111]
[1688176810456,0.5,1930.5,1930.2,13.08187111]
[1688176810667,0.5,1930.5,1930.2,14.78915795]
[1688176822554,0.5,1930.7,1930.4,1.343]
[1688176822881,0.5,1930.7,1930.5,10.36]
[1688176823083,0.5,1930.7,1930.6,6.21573]
[1688176823674,0.5,1931.0,1930.6,6.21573]
[1688176823854,0.5,1931.0,1930.6,7.55873]
[1688176824061,0.5,1931.0,1930.6,12.73846]
[1688176824287,10.85736,1931.0,1930.6,12.73846]
[1688176824484,10.85736,1931.0,1930.6,13.44876]
[1688176825376,5.67866,1931.0,1930.6,12.10576]
[1688176826173,0.5,1931.0,1930.6,14.69562]
[1688176826506,1.036651,1931.1,1930.8,1.339]
[1688176826673,0.5,1931.2,1930.9,10.35786]
[1688176826873,0.5,1931.2,1930.9,12.05524918]
[1688176828200,4.03647,1931.4,1931.0,2.68752184]
[1688176828369,3.0,1931.4,1931.1,12.94585]
[1688176828689,3.0,1931.4,1931.1,14.28885]
[1688176829379,3.0,1931.4,1931.1,12.84585]
[1688176831700,3.0,1931.4,1931.1,16.16182718]
[1688176836492,3.0,1931.4,1931.1,14.18885]
[1688176838698,3.0,1931.4,1931.1,14.59536492]
[1688176839402,3.0,1931.4,1931.2,2.68752184]
[1688176839600,3.0,1931.4,1931.2,4.03052184]
[1688176839766,3.0,1931.4,1931.3,14.28762]
[1688176839969,3.0,1931.4,1931.3,24.26157602]
[1688176840891,3.0,1931.4,1931.3,22.91857602]
[1688176841090,3.0,1931.4,1931.3,24.25357602]
[1688176845533,3.0,1931.4,1931.3,18.63214184]
[1688176857449,3.0,1931.4,1931.3,10.3557]
[1688176857668,3.0,1931.4,1931.1,1.73751492]
[1688176857995,3.0,1931.4,1931.3,10.3557]
[1688176858288,3.0,1931.4,1931.3,12.94462]
[1688176859738,3.0,1931.4,1931.3,10.3557]
[1688176860468,3.0,1931.4,1931.3,5.17785]
[1688176861030,3.0,1931.4,1931.2,7.86548184]
[1688176861233,3.0,1931.4,1931.2,2.68752184]
[1688176861835,3.0,1931.4,1931.2,7.86564184]
[1688176862157,3.0,1931.4,1931.2,13.04376184]
[1688176862355,3.0,1931.4,1931.2,5.17812]
[1688176862561,3.817737,1931.4,1931.1,8.17823]
[1688176862757,3.0,1931.4,1931.1,16.04398184]
[1688176863759,3.0,1931.4,1931.1,16.04414184]
[1688176867551,3.0,1931.4,1931.1,18.63333184]
[1688176872088,3.0,1931.4,1931.1,15.94581]
[1688176872294,3.0,1931.4,1931.1,13.35662]
[1688176874425,3.817743,1931.4,1931.1,8.17823]
[1688176874794,3.817743,1931.4,1931.1,3.0]
[1688176875167,3.817743,1931.4,1931.1,8.17834]
[1688176875509,3.817743,1931.4,1931.1,13.35673]
[1688176875812,3.0,1931.4,1931.1,13.35673]
[1688176885381,3.0,1931.4,1931.1,15.94592]
[1688176886244,3.0,1931.4,1931.3,10.3557]
[1688176886605,3.0,1931.4,1931.3,13.04322184]
[1688176886819,3.0,1931.4,1931.3,15.63214184]
[1688176887022,3.0,1931.4,1931.3,17.19535602]
[1688176890121,3.0,1931.4,1931.3,18.09522648]
[1688176890336,2.967,1931.4,1931.3,18.09522648]
[1688176892125,2.967,1931.4,1931.3,15.50630648]
[1688176892452,2.967,1931.4,1931.3,14.60643602]
[1688176893040,2.967,1931.4,1931.1,6.62331995]
[1688176893244,2.967,1931.4,1931.1,3.0]
[1688176893445,4.307,1931.4,1931.2,0.8999563]
[1688176893614,9.48464,1931.4,1931.1,3.0]
[1688176893814,4.307,1931.4,1931.1,3.0]
[1688176894054,5.92667687,1931.4,1931.1,3.0]
[1688176894627,5.92667687,1931.4,1931.1,2.95]
[1688176897673,1.333,1931.3,1931.0,10.41536085]
[1688176897954,1.333,1931.3,1931.0,10.0]
[1688176897955,12.19978,1931.1,1931.0,10.0]
[1688176898174,16.267856,1931.1,1931.0,10.0]
[1688176899211,16.747856,1931.1,1931.0,10.0]
[1688176899416,16.747856,1931.1,1931.0,7.5]
[1688176899655,17.784552,1931.1,1931.0,7.5]
[1688176901473,17.8009807,1931.1,1931.0,7.5]
[1688176902623,23.2429807,1931.1,1931.0,7.5]
[1688176903572,27.27250254,1931.1,1931.0,7.5]
[1688176903732,27.27250254,1931.1,1930.2,33.15989111]